bitfinex/quotes_SOLUSD_20240827
["timestamp","ask_amount","ask_price","bid_price","bid_amount"]
[1724721814540,0.50820453,159.07,159.03,6.2881]
[1724721814744,6.2862,159.08,159.03,6.2881]
[1724721816043,6.79400453,159.09,159.04,6.2876]
[1724721817765,6.4339,159.1,159.06,6.2868]
[1724721819253,6.4339,159.1,159.07,1.5744603]
[1724721819459,6.4339,159.1,159.06,6.2868]
[1724721819668,6.4339,159.1,159.07,1.57445961]
[1724721819846,6.4339,159.1,159.08,1.57445961]
[1724721820043,6.4339,159.1,159.06,6.2868]
[1724721820247,6.4339,159.1,159.07,1.57445976]
[1724721820539,18.63416281,159.1,159.08,1.57445941]
[1724721820760,6.2883,159.03,159.01,7.72086382]
[1724721820958,12.20026281,159.01,158.97,6.2904]
[1724721821197,12.20026281,159.01,158.98,1.25990492]
[1724721821198,0.50820453,159.0,158.98,1.25990492]
[1724721821470,28.57996281,159.01,158.99,2.51980976]
[1724721821643,22.6687,159.01,158.98,3.31364066]
[1724721821847,12.20026281,159.0,158.98,3.31364066]
[1724721823165,16.3797,159.01,158.98,3.31364066]
[1724721823464,0.50820453,159.0,158.98,3.31364066]
[1724721825654,16.3797,159.01,158.98,3.31364066]
[1724721826243,6.2331,159.03,158.98,3.31364066]
[1724721826753,6.2331,159.03,158.99,6.2896]
[1724721826965,18.43336281,159.03,158.99,6.2896]
[1724721827479,0.50820453,159.02,158.99,6.2896]
[1724721827777,0.50820453,159.02,158.98,3.31364066]
[1724721827975,18.43336281,159.03,158.98,3.31364066]
[1724721828677,18.43336281,159.03,158.98,9.60364066]
[1724721829575,18.43336281,159.03,158.99,6.2897]
[1724721829786,12.20026281,159.03,158.99,6.2897]
[1724721830354,16.3797,159.05,158.97,15.7256]
[1724721830551,12.20026281,159.03,158.99,6.2896]
[1724721831188,0.50820453,159.02,158.99,6.2896]
[1724721831553,12.20026281,159.03,159.0,1.57506646]
[1724721831781,12.20026281,159.03,158.99,6.2896]
[1724721831982,12.20026281,159.03,159.0,1.57506613]
[1724721832185,12.20026281,159.03,158.99,6.2896]
[1724721832370,12.20026281,159.03,159.0,1.57506609]
[1724721832566,12.20026281,159.03,158.99,6.2896]
[1724721832889,12.20026281,159.03,159.0,4.09492507]
[1724721833184,0.50820453,159.02,159.01,1.57498597]
[1724721835555,0.50820453,159.04,159.01,1.57498597]
[1724721835757,0.50820453,159.04,158.99,6.2896]
[1724721836054,0.50820453,159.04,159.0,4.0948603]
[1724721836252,0.50820453,159.04,159.01,1.57494627]
[1724721836473,0.50820453,159.04,158.99,6.2896]
[1724721836670,0.50820453,159.04,159.0,1.57493757]
[1724721836870,0.50820453,159.04,159.01,1.57493757]
[1724721837076,0.50820453,159.04,158.99,6.2896]
[1724721837275,0.50820453,159.04,159.0,4.09492101]
[1724721837488,0.50820453,159.04,159.01,1.57496962]
[1724721837708,445.81255124,159.12,159.0,16.98102731]
[1724721837709,16.4199,159.09,159.0,16.98102731]
[1724721837863,19.08224941,159.11,159.06,6.2868]
[1724721838178,19.59045394,159.11,159.06,6.2868]
[1724721838382,0.50820453,159.1,159.06,6.2868]
[1724721838900,25.36734941,159.11,159.06,6.2868]
[1724721839994,25.87555394,159.11,159.06,6.2868]
[1724721840167,19.59045394,159.11,159.06,6.2868]
[1724721840368,19.08224941,159.11,159.06,6.2868]
[1724721842682,25.87535394,159.11,159.06,6.2868]
[1724721843188,0.50820453,159.1,159.05,22.0051]
[1724721843391,12.20026281,159.09,159.05,22.0051]
[1724721843595,0.50820453,159.08,159.05,22.0051]
[1724721843973,12.70846734,159.09,159.05,22.0051]
[1724721844171,12.70846734,159.09,159.06,1.57445211]
[1724721844369,12.20026281,159.07,159.01,18.24085575]
[1724721844671,0.50820453,159.06,159.02,10.38235345]
[1724721844897,0.50820453,159.06,159.03,1.5745977]
[1724721845081,6.79520453,159.06,159.04,1.5745977]
[1724721845402,12.20026281,159.05,159.01,15.7215]
[1724721845588,22.7065,159.07,159.02,7.8633227]
[1724721845795,12.20026281,159.06,159.03,1.57474962]
[1724721846103,28.62016281,159.07,159.02,6.2885]
[1724721846270,12.20026281,159.07,159.03,7.86275303]
[1724721846471,6.2857,159.1,159.01,15.7215]
[1724721846678,18.48596281,159.1,159.02,1.57474138]
[1724721846879,18.48596281,159.1,159.03,1.57474138]
[1724721847096,18.48596281,159.1,159.02,1.25742104]
[1724721847399,18.48596281,159.1,159.05,6.2873]
[1724721847578,12.70846734,159.1,159.05,6.2873]
[1724721848596,12.70846734,159.1,159.04,22.0066]
[1724721848777,12.20026281,159.08,159.04,22.0066]
[1724721848975,0.50820453,159.07,159.04,22.0066]
[1724721849182,12.20026281,159.08,159.04,22.0066]
[1724721850009,12.70846734,159.08,159.04,22.0066]
[1724721850506,12.20026281,159.06,159.02,6.2881]
[1724721850812,12.20026281,159.04,159.01,15.7222]
[1724721850994,0.50820453,159.03,159.02,1.57482069]
[1724721851299,0.50820453,159.03,159.01,15.7222]
[1724721851802,0.50820453,159.03,159.0,6.2892]
[1724721851979,0.50820453,159.03,159.01,1.57494681]
[1724721852182,0.50820453,159.03,159.0,6.2892]
[1724721852382,0.50820453,159.03,159.01,1.57494681]
[1724721852604,0.50820453,159.03,159.0,6.2892]
[1724721852907,0.50820453,159.03,159.01,1.57494783]
[1724721853107,12.20026281,159.04,159.0,6.2892]
[1724721853312,12.20026281,159.04,159.01,1.57491543]
[1724721853630,0.50820453,159.03,159.0,6.2892]
[1724721853929,0.50820453,159.03,159.01,1.5749151]
[1724721854121,12.20026281,159.04,159.0,6.2892]
[1724721854282,12.20026281,159.04,159.01,1.57490878]
[1724721854480,0.50820453,159.03,159.0,6.2892]
[1724721854685,0.50820453,159.03,159.01,1.57493314]
[1724721854899,0.50820453,159.03,159.0,6.2892]
[1724721855122,0.50820453,159.03,159.01,1.57494747]
[1724721855299,0.50820453,159.03,159.0,6.2892]
[1724721855608,12.20026281,159.04,159.01,1.57491576]
[1724721855786,0.50820453,159.03,159.0,6.2892]
[1724721855989,0.50820453,159.03,159.01,1.5749478]
[1724721856209,12.20026281,159.04,159.0,6.2892]
[1724721856411,0.50820453,159.03,159.01,1.57491543]
[1724721856611,0.50820453,159.03,159.0,6.2892]
[1724721856906,0.50820453,159.03,159.01,1.57491576]
[1724721857107,0.50820453,159.03,159.0,6.2892]
[1724721857311,0.50820453,159.03,159.01,1.57491576]
[1724721857487,0.50820453,159.03,159.0,6.2892]
[1724721857682,12.20026281,159.04,159.01,1.57491543]
[1724721857880,12.20026281,159.04,159.0,6.2892]
[1724721858119,12.20026281,159.04,159.01,1.5749151]
[1724721858287,12.20026281,159.04,159.0,6.2892]
[1724721858492,12.20026281,159.04,159.01,1.57491543]
[1724721858708,0.50820453,159.03,159.0,6.2892]
[1724721858895,12.20026281,159.04,159.01,1.5749151]
[1724721859097,0.50820453,159.03,159.0,6.2892]
[1724721859312,0.50820453,159.03,159.01,1.5749151]
[1724721859614,0.50820453,159.03,159.0,6.2892]
[1724721859776,0.50820453,159.03,159.01,1.57491576]
[1724721859993,12.20026281,159.04,159.01,6.2888]
[1724721861116,23.3018866,159.11,159.02,1.25768366]
[1724721861416,12.20026281,159.09,159.04,6.2877]
[1724721861583,0.50820453,159.08,159.04,6.2877]
[1724721861783,18.48606281,159.09,159.04,6.2877]
[1724721862219,18.99426734,159.09,159.04,6.2877]
[1724721863010,18.48606281,159.09,159.04,6.2877]
[1724721863623,18.99426734,159.09,159.04,6.2877]
[1724721863920,18.48606281,159.09,159.04,6.2877]
[1724721866604,0.50820453,159.08,159.04,6.2877]
[1724721867096,23.3018866,159.11,159.05,6.2871]
[1724721867097,29.5870866,159.11,159.05,6.2871]
[1724721867306,12.70846734,159.1,159.05,6.2871]
[1724721867496,18.99386734,159.1,159.05,6.2871]
[1724721868920,12.20026281,159.08,159.04,22.006]
[1724721869126,0.50820453,159.07,159.04,22.006]
[1724721869826,12.70846734,159.08,159.04,22.006]
[1724721872023,12.20026281,159.08,159.04,22.006]
[1724721872229,18.99376734,159.1,159.05,6.2873]
[1724721878435,12.20026281,159.1,159.06,6.2868]
[1724721878725,7.61779113,159.11,159.06,6.2868]
[1724721878912,7.61779113,159.11,159.06,5.03682108]
[1724721880208,0.50820453,159.1,159.06,5.03682108]
[1724721880412,7.61779113,159.11,159.06,5.03682108]
[1724721883019,0.8245866,159.11,159.07,6.2864]
[1724721884339,1.33279113,159.11,159.07,6.2864]
[1724721892050,13.53305394,159.11,159.07,6.2864]
[1724721899365,0.8245866,159.11,159.06,12.20026281]
[1724721899563,0.8245866,159.11,159.07,1.25700808]
[1724721900758,0.8245866,159.11,159.1,6.2853]
[1724721902936,0.8245866,159.11,159.1,18.48556281]
[1724721903244,0.8245866,159.11,159.1,64.74253761]
[1724721903664,0.8245866,159.11,159.1,63.48556281]
[1724721903967,0.8245866,159.11,159.1,64.74219258]
[1724721904672,6.2809,159.22,159.14,31.1313]
[1724721904877,6.2809,159.22,159.15,1.25649023]
[1724721905346,18.48036281,159.24,159.17,15.7058]
[1724721905543,12.20026281,159.22,159.17,15.7058]
[1724721905742,6.78930453,159.21,159.16,6.2829]
[1724721906060,0.50820453,159.2,159.16,6.2829]
[1724721906648,6.2811,159.21,159.16,6.2829]
[1724721907049,18.48086281,159.22,159.16,6.2829]
[1724721907762,0.50820453,159.21,159.16,6.2829]
[1724721908143,12.20026281,159.2,159.15,6.283]
[1724721908356,0.50820453,159.19,159.15,6.283]
[1724721908530,12.20026281,159.2,159.15,6.283]
[1724721908739,0.50820453,159.19,159.14,37.4151]
[1724721910059,18.48126281,159.22,159.14,31.1314]
[1724721910259,0.50820453,159.21,159.14,31.1314]
[1724721910856,0.50820453,159.21,159.16,6.2826]
[1724721912250,12.20026281,159.2,159.15,6.2833]
[1724721912467,0.50820453,159.19,159.15,6.2833]
[1724721913448,0.50820453,159.2,159.15,6.2833]
[1724721914580,12.20026281,159.17,159.11,15.7122]
[1724721914747,12.20026281,159.17,159.12,6.2842]
[1724721914952,18.48226281,159.19,159.13,6.284]
[1724721915153,6.79020453,159.19,159.14,6.2836]
[1724721915460,18.48166281,159.2,159.14,6.2836]
[1724721915671,0.50820453,159.19,159.14,6.2836]
[1724721916177,6.79010453,159.19,159.14,6.2836]
[1724721916479,6.2819,159.19,159.14,6.2836]
[1724721916954,6.79040453,159.18,159.12,6.2842]
[1724721917458,6.79040453,159.18,159.13,6.284]
[1724721918061,6.2822,159.18,159.13,6.284]
[1724721918256,0.50820453,159.19,159.11,27.91246281]
[1724721918463,6.79000453,159.19,159.14,6.2836]
[1724721918771,6.79000453,159.19,159.13,6.2841]
[1724721919283,6.79000453,159.19,159.14,6.2837]
[1724721919457,6.2823,159.18,159.13,6.284]
[1724721921075,6.2818,159.19,159.14,6.2837]
[1724721921257,6.79000453,159.19,159.14,6.2837]
[1724721921457,6.79000453,159.19,159.13,6.2841]
[1724721923181,12.20026281,159.18,159.12,6.2845]
[1724721923390,0.50820453,159.17,159.12,6.2845]
[1724721924691,0.50820453,159.17,159.11,15.7122]
[1724721924692,12.20026281,159.16,159.08,15.0126]
[1724721924875,12.20026281,159.12,159.08,1.57382193]
[1724721925081,0.50820453,159.15,159.05,2.51829743]
[1724721925394,12.20026281,159.11,159.06,15.7172]
[1724721925715,12.20026281,159.13,159.08,6.2859]
[1724721925992,6.2834,159.15,159.09,6.2856]
[1724721927676,6.2837,159.14,159.09,6.2856]
[1724721927875,0.50820453,159.14,159.08,6.2861]
[1724721928083,12.70846734,159.14,159.08,6.2861]
[1724721928596,6.2842,159.13,159.07,6.2865]
[1724721928766,6.79240453,159.13,159.07,6.2865]
[1724721928968,0.50820453,159.13,159.08,6.286]
[1724721930201,6.79230453,159.13,159.08,6.286]
[1724721932386,6.79230453,159.13,159.09,1.57397426]
[1724721932576,6.79230453,159.13,159.08,6.286]
[1724721933397,6.79230453,159.13,159.09,1.57396608]
[1724721933598,6.79230453,159.13,159.08,6.286]
[1724721933774,6.79230453,159.13,159.09,1.57396608]
[1724721933974,6.2841,159.13,159.1,1.57390157]
[1724721934173,6.2841,159.13,159.08,6.286]
[1724721934387,6.2841,159.13,159.09,1.57393372]
[1724721934686,6.79230453,159.13,159.1,1.57393372]
[1724721934884,6.79230453,159.13,159.08,6.286]
[1724721935089,6.2841,159.13,159.09,1.57393323]
[1724721935277,6.2841,159.13,159.1,1.57393323]
[1724721935480,6.2841,159.13,159.08,6.286]
[1724721935705,6.2841,159.13,159.09,1.5739019]
[1724721935995,6.2841,159.13,159.1,3.14780329]
[1724721936205,6.2841,159.13,159.08,6.286]
[1724721936578,6.2841,159.13,159.09,1.57390141]
[1724721936896,16.3344,159.18,159.1,1.57390141]
[1724721937109,16.3344,159.18,159.12,6.2841]
[1724721937110,23.12510453,159.18,159.12,6.2841]
[1724721937701,22.6169,159.18,159.12,6.2841]
[1724721938081,22.6169,159.18,159.13,1.25668978]
[1724721938282,22.6169,159.18,159.12,6.2841]
[1724721938495,22.6169,159.18,159.13,1.25669757]
[1724721938695,22.6169,159.18,159.12,6.2841]
[1724721938906,6.2825,159.18,159.13,9.1144737]
[1724721939109,6.2825,159.18,159.13,6.2841]
[1724721939481,6.79070453,159.18,159.13,6.2841]
[1724721941902,6.2825,159.18,159.13,6.2841]
[1724721942202,0.50820453,159.21,159.12,15.7107]
[1724721942203,6.2818,159.19,159.14,7.8571994]
[1724721942385,6.2818,159.19,159.14,6.2837]
[1724721942579,0.50820453,159.18,159.14,6.2837]
[1724721943096,6.2818,159.19,159.14,6.2837]
[1724721943299,6.2818,159.19,159.15,1.57353071]
[1724721943509,6.2818,159.19,159.14,6.2837]
[1724721943710,6.2818,159.19,159.15,1.57349074]
[1724721943894,18.48206281,159.19,159.14,6.2837]
[1724721944207,18.48206281,159.19,159.15,1.57349074]
[1724721944513,18.48206281,159.19,159.14,6.2837]
[1724721944683,18.48206281,159.19,159.15,1.57349074]
[1724721944885,18.48206281,159.19,159.14,6.2837]
[1724721945207,18.48206281,159.19,159.15,1.57349873]
[1724721945503,18.48206281,159.19,159.14,6.2837]
[1724721946611,0.50820453,159.18,159.14,6.2837]
[1724721946979,0.50820453,159.18,159.15,1.57349907]
[1724721947181,0.50820453,159.18,159.14,6.2837]
[1724721947398,0.50820453,159.18,159.15,1.57349873]
[1724721947603,18.48206281,159.19,159.14,6.2837]
[1724721947797,0.50820453,159.18,159.15,1.57349873]
[1724721947983,0.50820453,159.18,159.14,6.2837]
[1724721948179,0.50820453,159.18,159.15,1.57351472]
[1724721948487,0.50820453,159.18,159.14,6.2837]
[1724721948786,0.50820453,159.18,159.15,1.57351506]
[1724721948986,0.50820453,159.18,159.14,6.2837]
[1724721949188,15.5223,159.22,159.15,18.53850923]
[1724721949385,27.72256281,159.22,159.15,16.96497852]
[1724721949626,6.281,159.21,159.16,7.85636125]
[1724721950590,21.8029,159.22,159.17,7.53881812]
[1724721950792,12.20026281,159.23,159.15,15.7084]
[1724721950988,12.20026281,159.23,159.16,1.57339791]
[1724721951202,12.20026281,159.23,159.15,15.7084]
[1724721951203,18.48076281,159.23,159.18,6.2821]
[1724721951388,0.50820453,159.22,159.18,6.2821]
[1724721951584,6.78880453,159.22,159.16,6.2826]
[1724721951816,6.2806,159.22,159.17,7.8557803]
[1724721951986,6.2806,159.22,159.17,6.2825]
[1724721955400,0.50820453,159.21,159.17,6.2825]
[1724721955602,6.2806,159.22,159.17,6.2825]
[1724721958901,18.98966734,159.21,159.15,21.9913]
[1724721959104,0.50820453,159.2,159.16,7.8562293]
[1724721959309,0.50820453,159.2,159.16,6.2829]
[1724721960199,12.20026281,159.2,159.16,6.2829]
[1724721960606,12.70846734,159.2,159.16,6.2829]
[1724721963015,16.53750453,159.2,159.12,15.7112]
[1724721963214,12.20026281,159.16,159.13,7.85759757]
[1724721963414,18.48246281,159.18,159.13,6.284]
[1724721963721,12.20026281,159.18,159.13,6.284]
[1724721963924,12.70846734,159.18,159.13,6.284]
[1724721965250,12.20026281,159.18,159.14,6.2837]
[1724721965402,6.2818,159.19,159.14,6.2837]
[1724721967017,12.20026281,159.18,159.14,6.2837]
[1724721967327,0.50820453,159.17,159.13,6.2841]
[1724721968223,16.0293,159.2,159.14,15.7087]
[1724721968529,6.0051,159.25,159.15,7.8567221]
[1724721968530,6.281,159.21,159.15,7.8567221]
[1724721968735,6.281,159.21,159.15,6.2833]
[1724721968907,18.48086281,159.22,159.16,6.2828]
[1724721969813,18.48086281,159.22,159.17,7.53886972]
[1724721970002,18.48086281,159.22,159.17,6.2825]
[1724721972931,6.2806,159.22,159.17,6.2825]
[1724721973129,12.20026281,159.18,159.1,30.7137]
[1724721973327,12.20026281,159.17,159.11,2.83226591]
[1724721973529,12.20026281,159.17,159.12,1.57352732]
[1724721973711,12.20026281,159.17,159.13,1.57352732]
[1724721974031,12.20026281,159.17,159.1,30.7137]
[1724721974327,12.20026281,159.2,159.13,15.7103]
[1724721974528,12.20026281,159.2,159.16,6.2828]
[1724721975031,12.20026281,159.2,159.15,7.53979957]
[1724721975324,12.20026281,159.2,159.16,1.57334809]
[1724721975531,12.20026281,159.2,159.15,6.2833]
[1724721977134,12.20026281,159.2,159.16,1.5734124]
[1724721977307,12.70846734,159.2,159.15,6.2833]
[1724721978116,12.70846734,159.2,159.16,1.57341519]
[1724721978310,12.70846734,159.2,159.15,6.2833]
[1724721978510,12.70846734,159.2,159.16,1.57342319]
[1724721978730,12.70846734,159.2,159.15,6.2833]
[1724721978937,6.2825,159.17,159.16,1.57342319]
[1724721979170,6.2825,159.17,159.12,6.2844]
[1724721979171,0.50820453,159.17,159.12,6.2844]
[1724721979525,0.50820453,159.17,159.13,6.284]
[1724721979829,0.50820453,159.17,159.14,1.57353728]
[1724721980136,0.50820453,159.17,159.13,6.284]
[1724721980938,18.48256281,159.18,159.13,6.284]
[1724721982335,12.20026281,159.16,159.12,15.7113]
[1724721982548,12.20026281,159.14,159.08,15.7145]
[1724721982717,0.50820453,159.13,159.09,7.54441669]
[1724721983040,0.50820453,159.13,159.09,6.2853]
[1724721983813,12.20026281,159.12,159.09,6.2853]
[1724721984242,12.20026281,159.12,159.08,15.7145]
[1724721984740,18.99306734,159.12,159.06,6.2869]
[1724721985039,12.20026281,159.1,159.04,15.7184]
[1724721985219,12.70846734,159.1,159.05,6.2869]
[1724721985541,12.70846734,159.1,159.06,6.2869]
[1724721985914,12.20026281,159.08,159.04,15.7184]
[1724721986113,0.50820453,159.07,159.02,6.2881]
[1724721986331,18.48636281,159.08,159.03,6.288]
[1724721986937,0.50820453,159.07,159.03,6.288]
[1724721987241,18.48636281,159.08,159.03,6.288]
[1724721987618,0.50820453,159.07,159.03,6.288]
[1724721988741,18.48636281,159.08,159.03,6.288]
[1724721989620,0.50820453,159.07,159.02,6.2884]
[1724721990233,12.20026281,159.04,159.01,2.51912379]
[1724721990441,12.70846734,159.04,159.01,2.51912379]
[1724721990647,12.20026281,159.04,159.0,22.0113]
[1724721990821,12.70846734,159.06,159.01,6.2886]
[1724721992144,21.8341,159.07,159.02,6.2884]
[1724721992355,0.50820453,159.11,159.0,15.7224]
[1724721992356,18.48606281,159.09,159.03,6.288]
[1724721992525,18.48606281,159.09,159.04,6.2876]
[1724721993343,0.50820453,159.08,159.03,22.0082]
[1724721995647,18.48606281,159.09,159.03,22.0082]
[1724721996029,12.20026281,159.09,159.03,15.7202]
[1724721996228,28.1194,159.11,159.04,1.25733043]
[1724721996446,40.31966281,159.11,159.03,15.7202]
[1724721997771,40.31966281,159.11,159.06,6.2868]
[1724721998619,12.20026281,159.09,159.06,6.2868]
[1724722000155,12.20026281,159.09,159.05,6.2873]
[1724722000446,0.50820453,159.08,159.04,6.2876]
[1724722001392,12.20026281,159.07,159.04,6.2876]
[1724722004363,12.20026281,159.09,159.05,6.2872]
[1724722005177,40.31966281,159.11,159.05,6.2872]
[1724722005683,21.8341,159.11,159.07,6.2865]
[1724722005974,34.54256734,159.11,159.06,6.2868]
[1724722006281,0.50820453,159.1,159.06,6.2868]
[1724722006451,40.31946281,159.11,159.06,6.2868]
[1724722006781,0.50820453,159.1,159.06,6.2868]
[1724722007462,6.79350453,159.1,159.05,22.0047]
[1724722007957,12.20026281,159.09,159.05,22.0047]
[1724722008156,12.70846734,159.09,159.05,22.0047]
[1724722010380,18.99426734,159.09,159.05,15.7174]
[1724722011864,12.70846734,159.09,159.05,15.7174]
[1724722012059,22.095,159.11,159.05,15.7174]
[1724722012367,12.20026281,159.1,159.05,15.7174]
[1724722012762,18.48556281,159.1,159.05,15.7174]
[1724722013088,18.99376734,159.1,159.05,15.7174]
[1724722013377,18.99376734,159.1,159.05,22.0044]
[1724722014079,12.70846734,159.1,159.06,6.2869]
[1724722015456,18.99406734,159.1,159.05,15.7174]
[1724722015982,18.48586281,159.1,159.05,22.0045]
[1724722017687,18.48586281,159.1,159.06,6.2869]
[1724722017865,12.20026281,159.1,159.06,6.2869]
[1724722018070,15.81,159.11,159.05,15.7174]
[1724722018377,12.20026281,159.13,159.08,6.2861]
[1724722018675,18.48446281,159.13,159.08,6.2861]
[1724722019769,0.50820453,159.12,159.08,6.2861]
[1724722020292,18.48446281,159.13,159.08,6.2861]
[1724722021265,12.20026281,159.13,159.09,6.2856]
[1724722023377,15.4723,159.19,159.1,1.25695485]
[1724722023578,12.20026281,159.17,159.13,6.284]
[1724722023779,18.48276281,159.17,159.12,6.2844]
[1724722024487,15.4723,159.19,159.14,6.2834]
[1724722024686,279.97086281,159.2,159.13,16.96624584]
[1724722024868,24.57086281,159.2,159.13,16.96624584]
[1724722025067,24.57086281,159.2,159.13,15.7095]
[1724722025369,18.48196281,159.2,159.14,1.25654727]
[1724722025772,18.48196281,159.2,159.15,6.2832]
[1724722026582,12.20026281,159.18,159.15,6.2832]
[1724722027189,6.2817,159.2,159.15,6.2832]
[1724722027397,12.20026281,159.18,159.15,6.2832]
[1724722030981,12.20026281,159.16,159.13,15.7095]
[1724722031285,0.50820453,159.15,159.13,15.7095]
[1724722031498,0.50820453,159.15,159.13,21.9935]
[1724722032989,0.50820453,159.15,159.11,6.2846]
[1724722033192,12.20026281,159.14,159.1,21.9984]
[1724722033368,0.50820453,159.13,159.1,21.9984]
[1724722034198,12.20026281,159.14,159.1,21.9984]
[1724722034685,12.20026281,159.14,159.11,6.2849]
[1724722035590,6.288,159.18,159.1,15.7132]
[1724722035591,6.2822,159.18,159.1,15.7132]
[1724722035889,20.0,159.17,159.1,15.7132]
[1724722036692,20.0,159.17,159.13,6.2841]
[1724722037975,20.50820453,159.17,159.13,6.2841]
[1724722038384,12.20026281,159.16,159.1,15.7132]
[1724722038591,0.50820453,159.15,159.1,15.7132]
[1724722038978,12.20026281,159.14,159.1,21.9984]
[1724722039677,12.20026281,159.14,159.06,15.7199]
[1724722039878,0.50820453,159.13,159.08,6.2858]
[1724722040096,12.20026281,159.14,159.08,15.7144]
[1724722040317,12.20026281,159.14,159.09,1.25702967]
[1724722040793,12.20026281,159.14,159.08,15.7144]
[1724722041389,0.50820453,159.13,159.08,15.7144]
[1724722041587,12.20026281,159.14,159.08,15.7144]
[1724722041891,12.20026281,159.14,159.1,6.2853]
[1724722042098,12.70846734,159.14,159.1,6.2853]
[1724722047091,12.70846734,159.14,159.11,6.2849]
[1724722047292,0.50820453,159.15,159.11,6.2849]
[1724722050704,6.79160453,159.15,159.1,6.2852]
[1724722050905,0.50820453,159.14,159.1,6.2852]
[1724722052400,18.48326281,159.16,159.11,7.54181616]
[1724722052607,18.48326281,159.16,159.11,6.2849]
[1724722053286,12.20026281,159.16,159.12,6.2845]
[1724722055007,26.79080453,159.17,159.12,6.2845]
[1724722055210,38.48286281,159.17,159.12,6.2845]
[1724722056297,18.48246281,159.18,159.13,6.284]
[1724722056696,0.50820453,159.17,159.13,6.284]
[1724722057499,12.20026281,159.16,159.12,21.9951]
[1724722057701,0.50820453,159.15,159.12,21.9951]
[1724722059589,0.50820453,159.16,159.12,21.9951]
[1724722061212,22.4031,159.21,159.15,6.283]
[1724722061406,20.0,159.2,159.15,6.283]
[1724722061715,34.60336281,159.21,159.15,6.283]
[1724722062692,34.60336281,159.21,159.15,7.53957059]
[1724722062893,34.60336281,159.21,159.16,6.2829]
[1724722063919,22.4031,159.21,159.16,6.2829]
[1724722064123,18.48076281,159.23,159.17,16.96244023]
[1724722064417,0.50820453,159.22,159.17,15.706]
[1724722064608,12.20026281,159.21,159.17,15.706]
[1724722064795,12.20026281,159.21,159.17,21.9885]
[1724722066822,16.1092,159.25,159.17,15.706]
[1724722067034,12.20026281,159.23,159.18,6.2821]
[1724722067211,0.50820453,159.22,159.18,6.2821]
[1724722067405,0.50820453,159.22,159.17,21.9884]
[1724722067714,18.48086281,159.22,159.17,21.9884]
[1724722067907,18.98906734,159.22,159.17,21.9884]
[1724722068111,6.78880453,159.22,159.17,21.9884]
[1724722068331,12.20026281,159.2,159.17,15.706]
[1724722068503,0.50820453,159.19,159.17,15.706]
[1724722069329,6.2805,159.23,159.17,21.9882]
[1724722069619,0.50820453,159.22,159.17,21.9882]
[1724722070128,12.20026281,159.21,159.17,21.9882]
[1724722070626,28.30946281,159.19,159.11,22.6166]
[1724722070805,12.20026281,159.15,159.11,22.6166]
[1724722071125,0.50820453,159.14,159.1,6.2852]
[1724722071330,0.50820453,159.14,159.11,1.57371874]
[1724722071629,0.50820453,159.14,159.1,6.2852]
[1724722073920,0.50820453,159.15,159.1,6.2852]
[1724722074119,16.1092,159.19,159.11,1.25690792]
[1724722074329,16.1092,159.19,159.09,15.7137]
[1724722074330,32.70846734,159.18,159.09,15.7137]
[1724722074676,20.50820453,159.18,159.12,15.7109]
[1724722074806,16.1092,159.19,159.12,15.7109]
[1724722074807,12.20026281,159.19,159.12,15.7109]
[1724722075132,12.70846734,159.19,159.13,1.57345759]
[1724722075334,12.20026281,159.19,159.12,15.7109]
[1724722075629,12.70846734,159.19,159.13,1.57345786]
[1724722075929,12.20026281,159.19,159.14,6.2837]
[1724722076335,12.20026281,159.17,159.08,23.33596613]
[1724722076507,0.50820453,159.16,159.11,6.2849]
[1724722077239,38.1421,159.24,159.13,6.2841]
[1724722077240,18.99056734,159.19,159.13,6.2841]
[1724722077421,0.50820453,159.18,159.13,6.2841]
[1724722078841,18.48236281,159.19,159.14,6.2837]
[1724722079137,12.20026281,159.19,159.15,6.2833]
[1724722079433,12.70846734,159.19,159.14,15.7092]
[1724722080241,12.70846734,159.19,159.14,21.9927]
[1724722080529,12.20026281,159.19,159.14,21.9927]
[1724722081610,6.2814,159.2,159.14,21.9927]
[1724722081817,18.98946734,159.21,159.15,6.2832]
[1724722082135,18.48126281,159.21,159.15,6.2832]
[1724722082511,12.20026281,159.21,159.16,1.25642116]
[1724722082709,6.2806,159.22,159.17,6.2825]
[1724722084445,28.7215,159.24,159.18,6.2818]
[1724722084620,32.20026281,159.23,159.18,6.2818]